[Event "Titled Tuesday Blitz April 05 Early 2022"]
[White "Petrovic, Aleksa"]
[Black "Chincholimath, Halsagar"]
[WhiteFideId "967629"]
[BlackFideId "5022487"]
[WhiteElo "2198"]
[BlackElo "1737"]
[Result "1-0"]
[Round "08"]
[TimeControl "180+1"]
[Date "2022.04.05"]
[WhiteClock "0:00:07"]
[BlackClock "0:00:10"]

1. d4 {[%clk 0:03:00]}  d5 {[%clk 0:02:59]} 2. Nf3 {[%clk 0:03:00]}  Nf6 {[%clk 0:02:58]} 3. c4 {[%clk 0:03:00]}  c6 {[%clk 0:02:58]} 4. e3 {[%clk 0:02:59]}  e6 {[%clk 0:02:53]} 5. Bd3 {[%clk 0:02:57]}  Bd6 {[%clk 0:02:51]} 6. O-O {[%clk 0:02:54]}  Nbd7 {[%clk 0:02:50]} 7. b3 {[%clk 0:02:42]}  O-O {[%clk 0:02:42]} 8. Bb2 {[%clk 0:02:42]}  Ne4 {[%clk 0:02:36]} 9. Ne5 {[%clk 0:02:35]}  f6 {[%clk 0:02:09]} 10. Nxd7 {[%clk 0:02:32]}  Bxd7 {[%clk 0:02:08]} 11. f3 {[%clk 0:02:23]}  Ng5 {[%clk 0:02:00]} 12. Nd2 {[%clk 0:02:23]}  e5 {[%clk 0:01:49]} 13. dxe5 {[%clk 0:02:16]}  fxe5 {[%clk 0:01:50]} 14. Qc2 {[%clk 0:01:34]}  e4 {[%clk 0:01:20]} 15. fxe4 {[%clk 0:01:21]}  dxe4 {[%clk 0:01:21]} 16. Nxe4 {[%clk 0:01:00]}  Rxf1+ {[%clk 0:01:15]} 17. Rxf1 {[%clk 0:00:59]}  Nxe4 {[%clk 0:01:14]} 18. Bxe4 {[%clk 0:01:00]}  Qh4 {[%clk 0:01:12]} 19. g3 {[%clk 0:00:50]}  Qh6 {[%clk 0:01:07]} 20. Qd3 {[%clk 0:00:36]}  Re8 {[%clk 0:00:57]} 21. Bd4 {[%clk 0:00:19]}  c5 {[%clk 0:00:44]} 22. Bb2 {[%clk 0:00:17]}  b6 {[%clk 0:00:43]} 23. Bd5+ {[%clk 0:00:14]}  Kh8 {[%clk 0:00:41]} 24. e4 {[%clk 0:00:15]}  Bh3 {[%clk 0:00:39]} 25. Rf2 {[%clk 0:00:10]}  Qh5 {[%clk 0:00:36]} 26. Qf3 {[%clk 0:00:09]}  Qxf3 {[%clk 0:00:28]} 27. Rxf3 {[%clk 0:00:10]}  Rf8 {[%clk 0:00:28]} 28. Rxf8+ {[%clk 0:00:08]}  Bxf8 {[%clk 0:00:28]} 29. Kf2 {[%clk 0:00:08]}  h6 {[%clk 0:00:26]} 30. e5 {[%clk 0:00:08]}  Kh7 {[%clk 0:00:25]} 31. e6 {[%clk 0:00:08]}  Kg6 {[%clk 0:00:24]} 32. Be5 {[%clk 0:00:08]}  Be7 {[%clk 0:00:21]} 33. Bb8 {[%clk 0:00:08]}  a6 {[%clk 0:00:19]} 34. Ba7 {[%clk 0:00:08]}  b5 {[%clk 0:00:18]} 35. Ke3 {[%clk 0:00:08]}  bxc4 {[%clk 0:00:18]} 36. Bxc4 {[%clk 0:00:07]}  a5 {[%clk 0:00:18]} 37. Bb6 {[%clk 0:00:07]}  a4 {[%clk 0:00:17]} 38. bxa4 {[%clk 0:00:07]}  Kf6 {[%clk 0:00:17]} 39. a5 {[%clk 0:00:07]}  Bxe6 {[%clk 0:00:11]} 40. Bxe6 {[%clk 0:00:08]}  Bd8 {[%clk 0:00:10]} 41. Bxd8+ {[%clk 0:00:07]} 1-0


[Site "https://www.chess.com"]

[Event "Titled Tuesday Blitz April 05 Early 2022"]
[White "Piesik, Piotr"]
[Black "Jakubowska, Anna"]
[WhiteFideId "1136194"]
[BlackFideId "1121952"]
[WhiteElo "2190"]
[BlackElo "1924"]
[Result "1-0"]
[Round "08"]
[TimeControl "180+1"]
[Date "2022.04.05"]
[WhiteClock "0:01:07"]
[BlackClock "0:00:27"]

1. Nf3 {[%clk 0:03:00]}  f5 {[%clk 0:02:58]} 2. d3 {[%clk 0:02:58]}  Nf6 {[%clk 0:02:56]} 3. e4 {[%clk 0:02:58]}  d6 {[%clk 0:02:45]} 4. exf5 {[%clk 0:02:56]}  Bxf5 {[%clk 0:02:44]} 5. d4 {[%clk 0:02:57]}  Bg4 {[%clk 0:02:37]} 6. Bd3 {[%clk 0:02:54]}  Nc6 {[%clk 0:02:36]} 7. c3 {[%clk 0:02:54]}  e5 {[%clk 0:02:34]} 8. h3 {[%clk 0:02:54]}  Bxf3 {[%clk 0:02:13]} 9. Qxf3 {[%clk 0:02:55]}  exd4 {[%clk 0:02:12]} 10. O-O {[%clk 0:02:54]}  Be7 {[%clk 0:02:08]} 11. cxd4 {[%clk 0:02:52]}  O-O {[%clk 0:02:07]} 12. Nc3 {[%clk 0:02:47]}  d5 {[%clk 0:01:59]} 13. Be3 {[%clk 0:02:39]}  Ne4 {[%clk 0:01:53]} 14. Qg4 {[%clk 0:02:39]}  Nxc3 {[%clk 0:01:34]} 15. bxc3 {[%clk 0:02:39]}  Qd6 {[%clk 0:01:22]} 16. Rfe1 {[%clk 0:02:37]}  Rae8 {[%clk 0:01:20]} 17. Rab1 {[%clk 0:02:17]}  Nd8 {[%clk 0:01:11]} 18. c4 {[%clk 0:02:05]}  c6 {[%clk 0:01:10]} 19. cxd5 {[%clk 0:01:38]}  Qxd5 {[%clk 0:01:06]} 20. Bc2 {[%clk 0:01:18]}  Kh8 {[%clk 0:01:04]} 21. Bf4 {[%clk 0:01:07]}  Qxd4 {[%clk 0:00:55]} 22. Qh5 {[%clk 0:01:07]}  g6 {[%clk 0:00:27]} 1-0


[Site "https://www.chess.com"]

[Event "Titled Tuesday Blitz April 05 Early 2022"]
[White "Potapova, Margarita"]
[Black "Niyazgulova, Marina"]
[WhiteFideId "14126869"]
[BlackFideId "24142573"]
[WhiteElo "2216"]
[BlackElo "2046"]
[Result "1/2-1/2"]
[Round "08"]
[TimeControl "180+1"]
[Date "2022.04.05"]
[WhiteClock "0:00:56"]
[BlackClock "0:00:48"]

1. c4 {[%clk 0:02:59]}  e5 {[%clk 0:02:59]} 2. g3 {[%clk 0:02:58]}  Nf6 {[%clk 0:02:58]} 3. Bg2 {[%clk 0:02:58]}  d5 {[%clk 0:02:56]} 4. cxd5 {[%clk 0:02:57]}  Nxd5 {[%clk 0:02:55]} 5. b3 {[%clk 0:02:51]}  Be7 {[%clk 0:02:54]} 6. Bb2 {[%clk 0:02:51]}  Nc6 {[%clk 0:02:52]} 7. Nf3 {[%clk 0:02:32]}  f6 {[%clk 0:02:44]} 8. O-O {[%clk 0:02:28]}  O-O {[%clk 0:02:44]} 9. d4 {[%clk 0:02:12]}  e4 {[%clk 0:02:26]} 10. Ne1 {[%clk 0:02:10]}  f5 {[%clk 0:02:25]} 11. Nc2 {[%clk 0:02:04]}  Be6 {[%clk 0:02:24]} 12. Ne3 {[%clk 0:02:00]}  Nxe3 {[%clk 0:02:15]} 13. fxe3 {[%clk 0:02:01]}  Nb4 {[%clk 0:02:04]} 14. Nc3 {[%clk 0:01:55]}  Nd5 {[%clk 0:02:03]} 15. Nxd5 {[%clk 0:01:55]}  Bxd5 {[%clk 0:02:03]} 16. Qc2 {[%clk 0:01:50]}  Bg5 {[%clk 0:02:01]} 17. Qc3 {[%clk 0:01:45]}  Qd6 {[%clk 0:01:55]} 18. a4 {[%clk 0:01:44]}  Rf6 {[%clk 0:01:47]} 19. Rac1 {[%clk 0:01:41]}  c6 {[%clk 0:01:45]} 20. b4 {[%clk 0:01:27]}  a6 {[%clk 0:01:31]} 21. Qd2 {[%clk 0:01:22]}  Raf8 {[%clk 0:01:28]} 22. Ba3 {[%clk 0:01:20]}  R8f7 {[%clk 0:01:25]} 23. Ra1 {[%clk 0:01:20]}  Qc7 {[%clk 0:01:24]} 24. Rfc1 {[%clk 0:01:17]}  Rh6 {[%clk 0:01:18]} 25. b5 {[%clk 0:01:13]}  Rd7 {[%clk 0:00:54]} 26. bxa6 {[%clk 0:01:12]}  bxa6 {[%clk 0:00:54]} 27. Rab1 {[%clk 0:01:13]}  Rd8 {[%clk 0:00:51]} 28. Bc5 {[%clk 0:01:12]}  Rb8 {[%clk 0:00:49]} 29. Rxb8+ {[%clk 0:01:10]}  Qxb8 {[%clk 0:00:49]} 30. a5 {[%clk 0:01:01]}  Qb3 {[%clk 0:00:48]} 31. Rc3 {[%clk 0:00:56]}  Qb1+ {[%clk 0:00:49]} 32. Rc1 {[%clk 0:00:56]}  Qb3 {[%clk 0:00:47]} 33. Rc3 {[%clk 0:00:56]}  Qb1+ {[%clk 0:00:48]} 34. Rc1 {[%clk 0:00:56]}  Qb3 {[%clk 0:00:48]} 1/2-1/2


[Site "https://www.chess.com"]

[Event "Titled Tuesday Blitz April 05 Early 2022"]
[White "Prado Lobo, Jonas"]
[Black "Bettalli, Francesco"]
[WhiteFideId "32050666"]
[BlackFideId "2816453"]
[WhiteElo "2214"]
[BlackElo "2216"]
[Result "0-1"]
[Round "08"]
[TimeControl "180+1"]
[Date "2022.04.05"]
[WhiteClock "0:00:04"]
[BlackClock "0:00:26"]

1. d4 {[%clk 0:03:00]}  e5 {[%clk 0:02:57]} 2. dxe5 {[%clk 0:03:00]}  Nc6 {[%clk 0:02:57]} 3. Nf3 {[%clk 0:03:00]}  Qe7 {[%clk 0:02:56]} 4. Bf4 {[%clk 0:03:01]}  Qb4+ {[%clk 0:02:56]} 5. Bd2 {[%clk 0:03:01]}  Qxb2 {[%clk 0:02:57]} 6. Nc3 {[%clk 0:03:02]}  Bb4 {[%clk 0:02:57]} 7. Rb1 {[%clk 0:03:02]}  Qa3 {[%clk 0:02:57]} 8. Rb3 {[%clk 0:02:46]}  Qa5 {[%clk 0:02:56]} 9. a3 {[%clk 0:02:37]}  Bxc3 {[%clk 0:02:52]} 10. Bxc3 {[%clk 0:02:36]}  Qc5 {[%clk 0:02:53]} 11. e3 {[%clk 0:02:24]}  Nge7 {[%clk 0:02:45]} 12. e6 {[%clk 0:01:50]}  dxe6 {[%clk 0:02:08]} 13. Bxg7 {[%clk 0:01:47]}  Rg8 {[%clk 0:02:09]} 14. Bb2 {[%clk 0:01:43]}  Bd7 {[%clk 0:02:03]} 15. Rxb7 {[%clk 0:01:28]}  Na5 {[%clk 0:01:58]} 16. Rb4 {[%clk 0:01:09]}  Nd5 {[%clk 0:01:58]} 17. Bd4 {[%clk 0:01:02]}  Qd6 {[%clk 0:01:52]} 18. Rb1 {[%clk 0:00:54]}  Qxa3 {[%clk 0:01:49]} 19. Qd2 {[%clk 0:00:40]}  Nc6 {[%clk 0:01:45]} 20. c4 {[%clk 0:00:25]}  Nb6 {[%clk 0:01:37]} 21. c5 {[%clk 0:00:22]}  Nd5 {[%clk 0:01:27]} 22. e4 {[%clk 0:00:17]}  Nxd4 {[%clk 0:00:48]} 23. Nxd4 {[%clk 0:00:18]}  Nc3 {[%clk 0:00:37]} 24. Rc1 {[%clk 0:00:13]}  Nxe4 {[%clk 0:00:37]} 25. Qc2 {[%clk 0:00:07]}  Qb4+ {[%clk 0:00:36]} 26. Ke2 {[%clk 0:00:05]}  Qxd4 {[%clk 0:00:35]} 27. f3 {[%clk 0:00:04]}  Bb5+ {[%clk 0:00:26]} 0-1


[Site "https://www.chess.com"]

[Event "Titled Tuesday Blitz April 05 Early 2022"]
[White "Prieto Aranguren, Alain"]
[Black "Ambartsumova, Karina"]
[WhiteFideId "2268906"]
[BlackFideId "4166299"]
[WhiteElo "2235"]
[BlackElo "2262"]
[Result "0-1"]
[Round "08"]
[TimeControl "180+1"]
[Date "2022.04.05"]
[WhiteClock "0:01:56"]
[BlackClock "0:01:28"]

1. d4 {[%clk 0:02:58]}  Nf6 {[%clk 0:02:59]} 2. c4 {[%clk 0:02:57]}  e6 {[%clk 0:02:59]} 3. Nc3 {[%clk 0:02:57]}  d5 {[%clk 0:02:59]} 4. cxd5 {[%clk 0:02:58]}  exd5 {[%clk 0:03:00]} 5. Bg5 {[%clk 0:02:58]}  c6 {[%clk 0:02:59]} 6. e3 {[%clk 0:02:58]}  Be7 {[%clk 0:02:59]} 7. Qc2 {[%clk 0:02:58]}  Nbd7 {[%clk 0:02:55]} 8. Bd3 {[%clk 0:02:58]}  h6 {[%clk 0:02:51]} 9. Bf4 {[%clk 0:02:58]}  Nh5 {[%clk 0:02:50]} 10. Nxd5 {[%clk 0:02:39]}  cxd5 {[%clk 0:02:39]} 11. Bc7 {[%clk 0:02:36]}  Bb4+ {[%clk 0:02:38]} 12. Kf1 {[%clk 0:02:35]}  Qe7 {[%clk 0:02:35]} 13. Bb5 {[%clk 0:02:30]}  O-O {[%clk 0:02:32]} 14. Nf3 {[%clk 0:02:28]}  Nhf6 {[%clk 0:02:23]} 15. g4 {[%clk 0:02:25]}  Ne4 {[%clk 0:02:18]} 16. h4 {[%clk 0:02:20]}  Bd6 {[%clk 0:02:10]} 17. g5 {[%clk 0:02:16]}  h5 {[%clk 0:02:08]} 18. Rc1 {[%clk 0:01:59]}  Nb6 {[%clk 0:01:56]} 19. Bxd6 {[%clk 0:01:59]}  Qxd6 {[%clk 0:01:57]} 20. Bd3 {[%clk 0:01:59]}  Bf5 {[%clk 0:01:45]} 21. Ne5 {[%clk 0:01:59]}  Rac8 {[%clk 0:01:43]} 22. Qd1 {[%clk 0:01:59]}  Rxc1 {[%clk 0:01:38]} 23. Qxc1 {[%clk 0:02:00]}  f6 {[%clk 0:01:32]} 24. gxf6 {[%clk 0:01:59]}  gxf6 {[%clk 0:01:33]} 25. Nf3 {[%clk 0:01:56]}  Ng3+ {[%clk 0:01:29]} 26. fxg3 {[%clk 0:01:56]}  Bxd3+ {[%clk 0:01:28]} 27. Kf2 {[%clk 0:01:57]}  Rc8 {[%clk 0:01:28]} 28. Qd2 {[%clk 0:01:56]}  Rc2 {[%clk 0:01:28]} 0-1


[Site "https://www.chess.com"]

[Event "Titled Tuesday Blitz April 05 Early 2022"]
[White "Rosenberg, Evan S"]
[Black "Dukic, Zachary"]
[WhiteFideId "2019299"]
[BlackFideId "2617188"]
[WhiteElo "2264"]
[BlackElo "2086"]
[Result "1/2-1/2"]
[Round "08"]
[TimeControl "180+1"]
[Date "2022.04.05"]
[WhiteClock "0:00:18"]
[BlackClock "0:00:14"]

1. d4 {[%clk 0:03:00]}  Nf6 {[%clk 0:02:59]} 2. c4 {[%clk 0:02:59]}  g6 {[%clk 0:03:00]} 3. Nc3 {[%clk 0:02:59]}  Bg7 {[%clk 0:03:00]} 4. e4 {[%clk 0:02:59]}  d6 {[%clk 0:03:00]} 5. Nf3 {[%clk 0:02:59]}  O-O {[%clk 0:03:01]} 6. h3 {[%clk 0:03:00]}  e5 {[%clk 0:03:00]} 7. dxe5 {[%clk 0:03:01]}  dxe5 {[%clk 0:03:00]} 8. Qxd8 {[%clk 0:03:01]}  Rxd8 {[%clk 0:03:00]} 9. Bg5 {[%clk 0:03:02]}  Re8 {[%clk 0:02:57]} 10. Nd5 {[%clk 0:03:02]}  Nxd5 {[%clk 0:02:57]} 11. cxd5 {[%clk 0:03:03]}  c6 {[%clk 0:02:57]} 12. Bc4 {[%clk 0:03:03]}  cxd5 {[%clk 0:02:57]} 13. Bxd5 {[%clk 0:03:04]}  Nd7 {[%clk 0:02:57]} 14. Nd2 {[%clk 0:03:03]}  Nf6 {[%clk 0:02:43]} 15. Bxf6 {[%clk 0:02:44]}  Bxf6 {[%clk 0:02:43]} 16. Rc1 {[%clk 0:02:44]}  Bg5 {[%clk 0:02:31]} 17. Rc7 {[%clk 0:02:38]}  Bd8 {[%clk 0:02:30]} 18. Rxf7 {[%clk 0:02:23]}  Be6 {[%clk 0:02:24]} 19. Rxb7 {[%clk 0:02:12]}  Bxd5 {[%clk 0:02:08]} 20. exd5 {[%clk 0:02:13]}  e4 {[%clk 0:02:08]} 21. Ke2 {[%clk 0:01:59]}  Rc8 {[%clk 0:01:22]} 22. Rd1 {[%clk 0:01:39]}  Rc2 {[%clk 0:01:19]} 23. d6 {[%clk 0:01:14]}  Bb6 {[%clk 0:01:15]} 24. Re7 {[%clk 0:01:02]}  Rxe7 {[%clk 0:00:58]} 25. dxe7 {[%clk 0:00:59]}  Kf7 {[%clk 0:00:56]} 26. Rb1 {[%clk 0:00:44]}  Bxf2 {[%clk 0:00:45]} 27. Kxf2 {[%clk 0:00:36]}  Rxd2+ {[%clk 0:00:45]} 28. Ke3 {[%clk 0:00:37]}  Rxg2 {[%clk 0:00:45]} 29. Kxe4 {[%clk 0:00:36]}  Rh2 {[%clk 0:00:42]} 30. a4 {[%clk 0:00:29]}  Rxh3 {[%clk 0:00:34]} 31. b4 {[%clk 0:00:29]}  h5 {[%clk 0:00:28]} 32. Ke5 {[%clk 0:00:24]}  Kxe7 {[%clk 0:00:26]} 33. Rc1 {[%clk 0:00:21]}  Kd7 {[%clk 0:00:24]} 34. Rg1 {[%clk 0:00:18]}  Rh4 {[%clk 0:00:20]} 35. Rxg6 {[%clk 0:00:18]}  Rxb4 {[%clk 0:00:20]} 36. Ra6 {[%clk 0:00:18]}  Rb7 {[%clk 0:00:15]} 37. Rh6 {[%clk 0:00:18]}  Rb4 {[%clk 0:00:14]} 38. Rh7+ {[%clk 0:00:16]}  Kc6 {[%clk 0:00:15]} 39. Rxa7 {[%clk 0:00:17]}  h4 {[%clk 0:00:15]} 40. a5 {[%clk 0:00:17]}  h3 {[%clk 0:00:14]} 41. Rh7 {[%clk 0:00:17]}  Rb5+ {[%clk 0:00:14]} 42. Ke6 {[%clk 0:00:16]}  Rxa5 {[%clk 0:00:14]} 43. Rxh3 {[%clk 0:00:17]}  Ra1 {[%clk 0:00:14]} 44. Rc3+ {[%clk 0:00:17]}  Kb5 {[%clk 0:00:15]} 45. Kd5 {[%clk 0:00:17]}  Rd1+ {[%clk 0:00:15]} 46. Ke4 {[%clk 0:00:17]}  Re1+ {[%clk 0:00:14]} 47. Kd3 {[%clk 0:00:18]}  Rd1+ {[%clk 0:00:14]} 48. Kc2 {[%clk 0:00:18]} 1/2-1/2


[Site "https://www.chess.com"]

[Event "Titled Tuesday Blitz April 05 Early 2022"]
[White "Saim, Mohamed Ilias"]
[Black "Estrada Nieto, Julian"]
[WhiteFideId "7900465"]
[BlackFideId "5101018"]
[WhiteElo "2006"]
[BlackElo "2252"]
[Result "0-1"]
[Round "08"]
[TimeControl "180+1"]
[Date "2022.04.05"]
[WhiteClock "0:00:01"]
[BlackClock "0:00:09"]

1. d4 {[%clk 0:03:00]}  d5 {[%clk 0:02:59]} 2. Nf3 {[%clk 0:03:00]}  Nf6 {[%clk 0:02:58]} 3. e3 {[%clk 0:02:59]}  c5 {[%clk 0:02:57]} 4. b3 {[%clk 0:02:58]}  Nc6 {[%clk 0:02:56]} 5. Bb2 {[%clk 0:02:57]}  e6 {[%clk 0:02:57]} 6. a3 {[%clk 0:02:55]}  cxd4 {[%clk 0:02:54]} 7. exd4 {[%clk 0:02:55]}  Bd6 {[%clk 0:02:54]} 8. Bd3 {[%clk 0:02:54]}  O-O {[%clk 0:02:54]} 9. Nbd2 {[%clk 0:02:51]}  b6 {[%clk 0:02:51]} 10. O-O {[%clk 0:02:51]}  Bb7 {[%clk 0:02:52]} 11. Ne5 {[%clk 0:02:51]}  Ne7 {[%clk 0:02:49]} 12. Qe2 {[%clk 0:02:24]}  Rc8 {[%clk 0:02:47]} 13. f4 {[%clk 0:02:22]}  a6 {[%clk 0:02:18]} 14. Rac1 {[%clk 0:02:15]}  b5 {[%clk 0:02:18]} 15. g4 {[%clk 0:02:09]}  Nd7 {[%clk 0:01:31]} 16. g5 {[%clk 0:01:43]}  Nf5 {[%clk 0:01:30]} 17. Ndf3 {[%clk 0:01:12]}  Qe7 {[%clk 0:01:25]} 18. b4 {[%clk 0:01:09]}  Nb6 {[%clk 0:01:23]} 19. Bxf5 {[%clk 0:00:35]}  exf5 {[%clk 0:01:22]} 20. Rfe1 {[%clk 0:00:25]}  Rfe8 {[%clk 0:01:21]} 21. Qg2 {[%clk 0:00:19]}  Qc7 {[%clk 0:00:40]} 22. h4 {[%clk 0:00:15]}  Nc4 {[%clk 0:00:38]} 23. c3 {[%clk 0:00:15]}  Re7 {[%clk 0:00:34]} 24. h5 {[%clk 0:00:14]}  Rce8 {[%clk 0:00:32]} 25. Red1 {[%clk 0:00:12]}  Bc8 {[%clk 0:00:16]} 26. Re1 {[%clk 0:00:08]}  Kh8 {[%clk 0:00:12]} 27. h6 {[%clk 0:00:08]}  g6 {[%clk 0:00:11]} 28. Kf2 {[%clk 0:00:05]}  Kg8 {[%clk 0:00:11]} 29. Nd3 {[%clk 0:00:02]}  Re4 {[%clk 0:00:09]} 30. Nc5 {[%clk 0:00:01]}  Bxc5 {[%clk 0:00:09]} 0-1


[Site "https://www.chess.com"]

[Event "Titled Tuesday Blitz April 05 Early 2022"]
[White "Sanchez, Robert"]
[Black "Martin Carmona, Gaston Manuel"]
[WhiteFideId "2034360"]
[BlackFideId "22284567"]
[WhiteElo "2311"]
[BlackElo "2146"]
[Result "1-0"]
[Round "08"]
[TimeControl "180+1"]
[Date "2022.04.05"]
[WhiteClock "0:00:32"]
[BlackClock "0:00:06"]

1. e4 {[%clk 0:03:00]}  e6 {[%clk 0:03:00]} 2. d4 {[%clk 0:02:59]}  d5 {[%clk 0:03:00]} 3. Nd2 {[%clk 0:03:00]}  c5 {[%clk 0:03:00]} 4. Ngf3 {[%clk 0:02:59]}  cxd4 {[%clk 0:03:00]} 5. Nxd4 {[%clk 0:02:58]}  Nc6 {[%clk 0:02:44]} 6. Bb5 {[%clk 0:02:58]}  Bd7 {[%clk 0:02:43]} 7. Nxc6 {[%clk 0:02:56]}  bxc6 {[%clk 0:02:41]} 8. Bd3 {[%clk 0:02:57]}  Bd6 {[%clk 0:02:39]} 9. f4 {[%clk 0:02:51]}  Bxf4 {[%clk 0:02:19]} 10. O-O {[%clk 0:02:49]}  Be3+ {[%clk 0:02:18]} 11. Kh1 {[%clk 0:02:49]}  Bh6 {[%clk 0:01:35]} 12. e5 {[%clk 0:02:38]}  Ne7 {[%clk 0:01:32]} 13. Qh5 {[%clk 0:02:33]}  Ng6 {[%clk 0:01:25]} 14. Nb3 {[%clk 0:02:15]}  Bxc1 {[%clk 0:01:24]} 15. Raxc1 {[%clk 0:02:15]}  Qh4 {[%clk 0:01:20]} 16. Qe2 {[%clk 0:02:02]}  Qe7 {[%clk 0:01:12]} 17. Qh5 {[%clk 0:01:57]}  c5 {[%clk 0:00:58]} 18. c4 {[%clk 0:01:52]}  d4 {[%clk 0:00:55]} 19. Nd2 {[%clk 0:01:50]}  Bc6 {[%clk 0:00:48]} 20. Ne4 {[%clk 0:01:46]}  Bxe4 {[%clk 0:00:48]} 21. Bxe4 {[%clk 0:01:47]}  Rb8 {[%clk 0:00:43]} 22. b3 {[%clk 0:01:40]}  O-O {[%clk 0:00:35]} 23. Rf3 {[%clk 0:01:31]}  f5 {[%clk 0:00:34]} 24. Rh3 {[%clk 0:01:15]}  fxe4 {[%clk 0:00:17]} 25. Qxh7+ {[%clk 0:01:15]}  Kf7 {[%clk 0:00:17]} 26. Rf1+ {[%clk 0:01:15]}  Ke8 {[%clk 0:00:18]} 27. Qxg6+ {[%clk 0:01:15]}  Kd7 {[%clk 0:00:18]} 28. Rg1 {[%clk 0:01:10]}  e3 {[%clk 0:00:17]} 29. Qd3 {[%clk 0:01:05]}  Rf5 {[%clk 0:00:17]} 30. Rxe3 {[%clk 0:01:04]}  Qg5 {[%clk 0:00:16]} 31. Rf3 {[%clk 0:01:00]}  Rxf3 {[%clk 0:00:14]} 32. Qxf3 {[%clk 0:01:00]}  Qxe5 {[%clk 0:00:15]} 33. h3 {[%clk 0:00:54]}  Qf6 {[%clk 0:00:13]} 34. Qe4 {[%clk 0:00:46]}  Rh8 {[%clk 0:00:12]} 35. Qb7+ {[%clk 0:00:45]}  Kd6 {[%clk 0:00:12]} 36. Qa6+ {[%clk 0:00:42]}  Ke5 {[%clk 0:00:07]} 37. Re1+ {[%clk 0:00:41]}  Kf5 {[%clk 0:00:05]} 38. Rf1+ {[%clk 0:00:42]}  Kg6 {[%clk 0:00:04]} 39. Rxf6+ {[%clk 0:00:42]}  gxf6 {[%clk 0:00:05]} 40. Qxe6 {[%clk 0:00:41]}  Rd8 {[%clk 0:00:05]} 41. Qe4+ {[%clk 0:00:37]}  Kf7 {[%clk 0:00:05]} 42. Qd3 {[%clk 0:00:36]}  Re8 {[%clk 0:00:06]} 43. b4 {[%clk 0:00:32]} 1-0


[Site "https://www.chess.com"]

[Event "Titled Tuesday Blitz April 05 Early 2022"]
[White "Silva, Miguel Antonio Neto"]
[Black "Mirzoev, Azer"]
[WhiteFideId "1911929"]
[BlackFideId "13400304"]
[WhiteElo "2204"]
[BlackElo "2525"]
[Result "0-1"]
[Round "08"]
[TimeControl "180+1"]
[Date "2022.04.05"]
[WhiteClock "0:00:56"]
[BlackClock "0:01:17"]

1. d4 {[%clk 0:02:59]}  Nf6 {[%clk 0:02:58]} 2. Nf3 {[%clk 0:02:54]}  e6 {[%clk 0:02:59]} 3. g3 {[%clk 0:02:53]}  b5 {[%clk 0:02:59]} 4. Bg2 {[%clk 0:02:53]}  Bb7 {[%clk 0:03:00]} 5. O-O {[%clk 0:02:53]}  c5 {[%clk 0:03:00]} 6. a4 {[%clk 0:02:51]}  b4 {[%clk 0:02:59]} 7. dxc5 {[%clk 0:02:50]}  Bxc5 {[%clk 0:02:58]} 8. c4 {[%clk 0:02:49]}  bxc3 {[%clk 0:02:56]} 9. Nxc3 {[%clk 0:02:49]}  Na6 {[%clk 0:02:55]} 10. Bg5 {[%clk 0:02:46]}  h6 {[%clk 0:02:51]} 11. Bf4 {[%clk 0:02:44]}  O-O {[%clk 0:02:50]} 12. Rc1 {[%clk 0:02:41]}  d5 {[%clk 0:02:44]} 13. Ne5 {[%clk 0:02:40]}  Qb6 {[%clk 0:02:38]} 14. Nb5 {[%clk 0:02:37]}  Rfc8 {[%clk 0:02:35]} 15. Nd3 {[%clk 0:02:27]}  Bf8 {[%clk 0:01:54]} 16. Be5 {[%clk 0:02:16]}  Rxc1 {[%clk 0:01:49]} 17. Qxc1 {[%clk 0:02:12]}  Nd7 {[%clk 0:01:49]} 18. Bd4 {[%clk 0:02:10]}  Nac5 {[%clk 0:01:46]} 19. Qe3 {[%clk 0:01:57]}  a6 {[%clk 0:01:36]} 20. Nc3 {[%clk 0:01:52]}  Qd6 {[%clk 0:01:22]} 21. f4 {[%clk 0:01:25]}  Nxd3 {[%clk 0:01:19]} 22. exd3 {[%clk 0:01:18]}  Qb4 {[%clk 0:01:19]} 23. f5 {[%clk 0:01:07]}  e5 {[%clk 0:01:18]} 24. Bxe5 {[%clk 0:01:06]}  Re8 {[%clk 0:01:18]} 25. d4 {[%clk 0:00:56]}  Rxe5 {[%clk 0:01:17]} 0-1


[Site "https://www.chess.com"]